[Event "XIV American Continental-ch 2019"]
[Site "Sao Paulo"]
[Date "2019.07.07"]
[Round "4.17"]
[White "Escalante Ramirez, Brian Sebasti"]
[Black "Cadilhac, Igor Tokuichi Kikuch"]
[Result "1-0"]
[ECO "C43"]
[WhiteElo "2447"]
[BlackElo "2291"]
[Annotator "NA"]
[PlyCount "49"]
[EventDate "2019.07.05"]
[EventType "swiss"]
[EventCountry "BRA"]
[SourceTitle "playchess.com"]
[Source "ChessBase"]
[SourceQuality "1"]
[TimeControl "40/5400+30:1800+30"]

1. e4 {[%emt 0:00:00]} e5 {[%emt 0:00:00]} 2. Nf3 {[%emt 0:00:00]} Nf6 {[%emt 0:00:00]} 3. d4 {[%emt 0:00:00]} Nxe4 {[%emt 0:00:00]} 4. Bd3 {[%emt 0:00:00]} d5 {[%emt 0:00:09]} 5. Nxe5 {[%emt 0:00:00]} Nd7 {[%emt 0:00:47]} 6. Nxd7 {[%emt 0:00:00]} Bxd7 {[%emt 0:00:07]} 7. O-O {[%emt 0:00:00]} Bd6 {[%emt 0:00:13]} 8. Nc3 {[%emt 0:00:02]} Nxc3 {[%emt 0:00:11]} 9. bxc3 {[%emt 0:00:03]} Qh4 {[%emt 0:00:12]} 10. Re1+ {[%emt 0:02:57]} Be6 {[%emt 0:00:10]} 11. g3 {[%emt 0:03:02]} Qh3 {[%emt 0:00:11]} 12. c4 {[%emt 0:00:45]} O-O {[%emt 0:08:00]} 13. c5 {[%emt 0:01:28]} Be7 {[%emt 0:00:15]} 14. Bf1 {[%emt 0:16:29]} Qf5 {[%emt 0:00:22]} 15. Re5 {[%emt 0:00:03]} Qg6 {[%emt 0:00:54]} 16. Bd3 {[%emt 0:00:24]} f5 {[%emt 0:00:17]} 17. Qe2 {[%emt 0:03:27]} Rf6 {[%emt 0:08:55]} 18. c4 {[%emt 0:08:19]} dxc4 {[%emt 0:08:25]} 19. Bxc4 {[%emt 0:00:51]} Bxc4 {[%emt 0:00:39]} 20. Qxc4+ {[%emt 0:00:02]} Qf7 {[%emt 0:00:34]} 21. Qb5 {[%emt 0:00:05]} b6 {[%emt 0:02:28]} 22. Bg5 {[%emt 0:00:29]} Re6 {[%emt 0:00:26]} 23. Rxe6 {[%emt 0:01:02]} Qxe6 {[%emt 0:00:11]} 24. Bxe7 {[%emt 0:00:05]} Qxe7 {[%emt 0:00:08]} 25. cxb6 {[%emt 0:00:08]} 1-0

[Event "XIV American Continental-ch 2019"]
[Site "Sao Paulo"]
[Date "2019.07.07"]
[Round "4.18"]
[White "Abrantes, Tiago Garrido"]
[Black "Di Berardino, Diego Rafael"]
[Result "0-1"]
[ECO "A30"]
[WhiteElo "2177"]
[BlackElo "2506"]
[Annotator "ChessBase"]
[PlyCount "86"]
[EventDate "2019.07.05"]
[EventType "swiss"]
[EventCountry "BRA"]
[SourceTitle "playchess.com"]
[Source "ChessBase"]
[SourceQuality "1"]
[TimeControl "40/5400+30:1800+30"]

1. c4 {[%emt 0:03:29]} c5 {[%emt 0:00:02]} 2. g3 {[%emt 0:00:35]} Nf6 {[%emt 0:00:54]} 3. Bg2 {[%emt 0:00:24]} d5 {[%emt 0:00:04]} 4. cxd5 {[%emt 0:03:00]} Nxd5 {[%emt 0:00:04]} 5. Nf3 {[%emt 0:00:21]} Nc6 {[%emt 0:00:35]} 6. O-O {[%emt 0:02:45]} e5 {[%emt 0:01:52]} 7. d3 {[%emt 0:01:36]} Be7 {[%emt 0:00:49]} 8. Nc3 {[%emt 0:00:17]} Nc7 {[%emt 0:00:15]} 9. b3 {[%emt 0:02:21]} Be6 {[%emt 0:05:21]} 10. Bb2 {[%emt 0:00:28]} Qd7 {[%emt 0:04:27]} 11. Re1 {[%emt 0:00:54]} O-O {[%emt 0:01:12]} 12. Rc1 {[%emt 0:00:24]} f6 {[%emt 0:00:22]} 13. Ne4 {[%emt 0:09:59]} b6 {[%emt 0:00:39]} 14. Qc2 {[%emt 0:03:50]} Rac8 {[%emt 0:01:24]} 15. Qb1 {[%emt 0:00:35]} Nd5 {[%emt 0:07:11]} 16. e3 {[%emt 0:05:03]} Bh3 {[%emt 0:08:00]} 17. Bh1 {[%emt 0:05:51]} Bg4 {[%emt 0:08:33]} 18. a3 {[%emt 0:08:42]} Kh8 {[%emt 0:04:07]} 19. Bg2 {[%emt 0:03:15]} Rfd8 {[%emt 0:13:56]} 20. Ned2 {[%emt 0:09:24]} Nc7 {[%emt 0:14:13]} 21. Bf1 {[%emt 0:02:55]} Bf8 {[%emt 0:02:24]} 22. Be2 {[%emt 0:01:39]} Ne6 {[%emt 0:08:22]} 23. Rcd1 {[%emt 0:01:41]} Qe8 {[%emt 0:04:27]} 24. Kg2 {[%emt 0:09:46]} Qh5 {[%emt 0:00:12]} 25. Ng1 {[%emt 0:00:58]} Bxe2 {[%emt 0:00:29]} 26. Nxe2 {[%emt 0:02:28]} Rd7 {[%emt 0:00:26]} 27. Nf3 {[%emt 0:04:19]} Rcd8 {[%emt 0:00:13]} 28. Qc2 {[%emt 0:02:39]} Rd6 {[%emt 0:09:52]} 29. Qc4 {[%emt 0:02:00]} Qf7 {[%emt 0:00:55]} 30. Kg1 {[%emt 0:06:58]} Na5 {[%emt 0:00:37]} 31. Qc2 {[%emt 0:00:39]} Qb7 {[%emt 0:00:07]} 32. e4 {[%emt 0:01:14]} Qd7 {[%emt 0:00:47]} 33. b4 {[%emt 0:03:25]} cxb4 {[%emt 0:00:15]} 34. axb4 {[%emt 0:00:02]} Nc6 {[%emt 0:00:06]} 35. b5 {[%emt 0:00:15]} Nb4 {[%emt 0:00:30]} 36. Qc4 {[%emt 0:02:44]} Nxd3 {[%emt 0:00:23]} 37. Ba3 {[%emt 0:00:16]} Nxe1 {[%emt 0:00:28]} 38. Rxe1 {[%emt 0:00:09]} Rd3 {[%emt 0:01:23]} 39. Bxf8 {[%emt 0:00:01]} Rxf3 {[%emt 0:00:29]} 40. Bb4 {[%emt 0:00:12]} Rd3 {[%emt 0:00:37]} 41. Rc1 {[%emt 0:31:40]} Rd1+ {[%emt 0:31:21]} 42. Rxd1 {[%emt 0:00:00]} Qxd1+ {[%emt 0:00:00]} 43. Kg2 {[%emt 0:00:00]} Qd3 {[%emt 0:00:00]} 0-1

[Event "XIV American Continental-ch 2019"]
[Site "Sao Paulo"]
[Date "2019.07.08"]
[Round "4.19"]
[White "Alboredo, Julia"]
[Black "Salinas Herrera, Pablo"]
[Result "0-1"]
[ECO "B90"]
[WhiteElo "2175"]
[BlackElo "2498"]
[Annotator "RC"]
[PlyCount "232"]
[EventDate "2019.07.05"]
[EventType "swiss"]
[EventCountry "BRA"]
[SourceTitle "playchess.com"]
[Source "ChessBase"]
[SourceQuality "1"]
[TimeControl "40/5400+30:1800+30"]

1. e4 {[%emt 0:00:00]} c5 {[%emt 0:00:04]} 2. Nf3 {[%emt 0:00:00]} d6 {[%emt 0:00:07]} 3. d4 {[%emt 0:00:00]} cxd4 {[%emt 0:00:04]} 4. Nxd4 {[%emt 0:00:05]} Nf6 {[%emt 0:00:04]} 5. Nc3 {[%emt 0:00:12]} a6 {[%emt 0:00:05]} 6. Be3 {[%emt 0:00:17]} e5 {[%emt 0:00:05]} 7. Nb3 {[%emt 0:00:11]} Be6 {[%emt 0:00:05]} 8. Qd2 {[%emt 0:00:48]} Nbd7 {[%emt 0:00:45]} 9. O-O-O {[%emt 0:00:49]} b5 {[%emt 0:03:19]} 10. f4 {[%emt 0:08:36]} Be7 {[%emt 0:01:00]} 11. Kb1 {[%emt 0:03:02]} O-O {[%emt 0:00:23]} 12. f5 {[%emt 0:00:43]} Bc4 {[%emt 0:00:08]} 13. g4 {[%emt 0:09:04]} Nxg4 {[%emt 0:03:01]} 14. Rg1 {[%emt 0:00:15]} Nxe3 {[%emt 0:00:06]} 15. Qxe3 {[%emt 0:00:07]} Bxb3 {[%emt 0:00:08]} 16. cxb3 {[%emt 0:03:16]} Kh8 {[%emt 0:00:32]} 17. Be2 {[%emt 0:10:22]} h6 {[%emt 0:16:57]} 18. Rg3 {[%emt 0:14:38]} Nf6 {[%emt 0:05:58]} 19. Rdg1 {[%emt 0:01:33]} Rg8 {[%emt 0:04:59]} 20. Rh3 {[%emt 0:02:01]} Nh7 {[%emt 0:01:11]} 21. Nd5 {[%emt 0:06:23]} Bg5 {[%emt 0:00:09]} 22. Qd3 {[%emt 0:00:10]} Rc8 {[%emt 0:02:49]} 23. a3 {[%emt 0:07:05]} Bf4 {[%emt 0:05:17]} 24. Rd1 {[%emt 0:08:55]} Nf6 {[%emt 0:09:07]} 25. Nxf4 {[%emt 0:05:08]} exf4 {[%emt 0:00:06]} 26. Bf3 {[%emt 0:02:35]} Nh7 {[%emt 0:07:35]} 27. Qd4 {[%emt 0:04:48]} f6 {[%emt 0:00:13]} 28. Rh4 {[%emt 0:00:51]} Qc7 {[%emt 0:00:32]} 29. Qd2 {[%emt 0:01:57]} Rge8 {[%emt 0:15:22]} 30. Rxf4 {[%emt 0:00:32]} Ng5 {[%emt 0:00:10]} 31. Bg2 {[%emt 0:02:11]} Re5 {[%emt 0:00:43]} 32. h4 {[%emt 0:02:13]} Nf7 {[%emt 0:00:05]} 33. b4 {[%emt 0:03:03]} Qe7 {[%emt 0:00:43]} 34. Rc1 {[%emt 0:01:53]} Rxc1+ {[%emt 0:01:29]} 35. Qxc1 {[%emt 0:00:10]} d5 {[%emt 0:00:04]} 36. Qc8+ {[%emt 0:01:24]} Kh7 {[%emt 0:00:06]} 37. exd5 {[%emt 0:01:57]} Nd6 {[%emt 0:02:28]} 38. Qc5 {[%emt 0:00:47]} Re1+ {[%emt 0:07:08]} 39. Ka2 {[%emt 0:00:02]} Qe5 {[%emt 0:00:10]} 40. Rf2 {[%emt 0:01:01]} Re3 {[%emt 0:08:57]} 41. Bf3 {[%emt 0:20:41]} Nxf5 {[%emt 0:11:18]} 42. Bd1 {[%emt 0:00:11]} Nd6 {[%emt 0:07:13]} 43. Bc2+ {[%emt 0:00:06]} f5 {[%emt 0:00:04]} 44. Bxf5+ {[%emt 0:05:33]} Nxf5 {[%emt 0:00:06]} 45. Rxf5 {[%emt 0:00:06]} Qxf5 {[%emt 0:00:05]} 46. Qxe3 {[%emt 0:00:07]} Qxd5+ {[%emt 0:00:02]} 47. Kb1 {[%emt 0:00:17]} Qh1+ {[%emt 0:00:05]} 48. Ka2 {[%emt 0:00:07]} Qxh4 {[%emt 0:00:09]} 49. Qd3+ {[%emt 0:00:06]} Kh8 {[%emt 0:00:04]} 50. Qg6 {[%emt 0:03:30]} Qf6 {[%emt 0:00:16]} 51. Qe8+ {[%emt 0:00:05]} Kh7 {[%emt 0:00:04]} 52. b3 {[%emt 0:00:37]} Qg6 {[%emt 0:00:19]} 53. Qe2 {[%emt 0:00:13]} h5 {[%emt 0:00:11]} 54. a4 {[%emt 0:00:07]} Qf5 {[%emt 0:00:04]} 55. Qh2 {[%emt 0:00:47]} Qg4 {[%emt 0:01:42]} 56. Qc2+ {[%emt 0:00:22]} Qg6 {[%emt 0:01:09]} 57. Qh2 {[%emt 0:00:12]} Kh6 {[%emt 0:00:59]} 58. Qd2+ {[%emt 0:00:34]} Qg5 {[%emt 0:00:05]} 59. Qd6+ {[%emt 0:00:09]} Qf6 {[%emt 0:00:03]} 60. Qc5 {[%emt 0:01:00]} h4 {[%emt 0:02:49]} 61. axb5 {[%emt 0:00:38]} axb5 {[%emt 0:00:05]} 62. Qxb5 {[%emt 0:00:11]} Qf2+ {[%emt 0:01:33]} 63. Ka3 {[%emt 0:00:44]} Qa7+ {[%emt 0:00:07]} 64. Kb2 {[%emt 0:00:16]} Qd4+ {[%emt 0:00:04]} 65. Ka2 {[%emt 0:00:40]} Qf2+ {[%emt 0:10:27]} 66. Ka3 {[%emt 0:00:09]} h3 {[%emt 0:00:16]} 67. Qc6+ {[%emt 0:00:26]} Qf6 {[%emt 0:00:48]} 68. Qc1+ {[%emt 0:01:28]} g5 {[%emt 0:00:05]} 69. b5 {[%emt 0:02:40]} Qf8+ {[%emt 0:04:11]} 70. Kb2 {[%emt 0:01:33]} Qh8+ {[%emt 0:03:26]} 71. Kb1 {[%emt 0:00:29]} Qe8 {[%emt 0:02:37]} 72. Qh1 {[%emt 0:00:53]} Qe6 {[%emt 0:00:47]} 73. Kb2 {[%emt 0:01:48]} Qe2+ {[%emt 0:02:17]} 74. Ka3 {[%emt 0:00:03]} Qg2 {[%emt 0:00:10]} 75. Qe1 {[%emt 0:00:16]} Qa8+ 76. Kb4 {[%emt 0:00:30]} Qf8+ {[%emt 0:00:47]} 77. Ka4 {[%emt 0:00:53]} Qa8+ {[%emt 0:01:04]} 78. Kb4 {[%emt 0:00:07]} Qf8+ {[%emt 0:00:06]} 79. Ka4 {[%emt 0:00:06]} Qf4+ {[%emt 0:00:18]} 80. Ka5 {[%emt 0:00:28]} h2 {[%emt 0:00:24]} 81. Qe6+ {[%emt 0:00:22]} Kh5 {[%emt 0:00:03]} 82. Qe8+ {[%emt 0:00:14]} Kh4 {[%emt 0:00:09]} 83. Qe1+ {[%emt 0:01:18]} Kh3 {[%emt 0:00:17]} 84. Qc3+ {[%emt 0:00:14]} Kg2 {[%emt 0:00:19]} 85. Qc2+ {[%emt 0:00:55]} Kf1 {[%emt 0:00:29]} 86. Qd1+ {[%emt 0:00:34]} Kf2 {[%emt 0:00:04]} 87. Qc2+ {[%emt 0:00:08]} Ke1 {[%emt 0:00:05]} 88. b4 {[%emt 0:01:13]} Kf1 {[%emt 0:03:16]} 89. Qd1+ {[%emt 0:00:08]} Kf2 {[%emt 0:00:05]} 90. Qc2+ {[%emt 0:00:15]} Kg1 {[%emt 0:00:11]} 91. Qd1+ {[%emt 0:00:19]} Kg2 {[%emt 0:00:05]} 92. Qe2+ {[%emt 0:00:14]} Kg3 {[%emt 0:00:25]} 93. Qe1+ {[%emt 0:00:24]} Qf2 {[%emt 0:00:16]} 94. Qe5+ {[%emt 0:00:17]} Kh3 {[%emt 0:00:18]} 95. Qc3+ {[%emt 0:00:50]} Kg2 {[%emt 0:01:27]} 96. Qc6+ {[%emt 0:00:16]} Qf3 {[%emt 0:00:21]} 97. Qc2+ {[%emt 0:00:13]} Kh3 {[%emt 0:01:33]} 98. Qh7+ {[%emt 0:00:31]} Kg3 {[%emt 0:00:22]} 99. Qc7+ {[%emt 0:00:08]} Qf4 {[%emt 0:00:14]} 100. Qc3+ {[%emt 0:00:07]} Kg4 {[%emt 0:00:26]} 101. Qc8+ {[%emt 0:00:21]} Qf5 {[%emt 0:00:16]} 102. Qc4+ {[%emt 0:00:05]} Kh3 {[%emt 0:00:56]} 103. Qc3+ {[%emt 0:00:11]} Kg4 {[%emt 0:00:37]} 104. Qd4+ {[%emt 0:00:12]} Qf4 {[%emt 0:00:33]} 105. Qd7+ {[%emt 0:00:37]} Kf3 {[%emt 0:00:37]} 106. Qd3+ {[%emt 0:00:13]} Qe3 {[%emt 0:00:14]} 107. Qd5+ {[%emt 0:00:41]} Ke2 {[%emt 0:00:23]} 108. Qa2+ {[%emt 0:01:36]} Qd2 {[%emt 0:00:19]} 109. Qc4+ {[%emt 0:00:50]} Kd1 {[%emt 0:00:04]} 110. Qb3+ {[%emt 0:01:36]} Kc1 {[%emt 0:00:04]} 111. Qa3+ {[%emt 0:01:07]} Kb1 {[%emt 0:00:23]} 112. Qb3+ {[%emt 0:00:19]} Ka1 {[%emt 0:00:06]} 113. Qh3 {[%emt 0:00:45]} Qd8+ {[%emt 0:00:18]} 114. Ka4 {[%emt 0:00:40]} Qd1+ {[%emt 0:00:04]} 115. Ka3 {[%emt 0:00:17]} Qc1+ {[%emt 0:00:15]} 116. Kb3 {[%emt 0:00:44]} h1=Q {[%emt 0:00:15]} 0-1

[Event "XIV American Continental-ch 2019"]
[Site "Sao Paulo"]
[Date "2019.07.07"]
[Round "4.20"]
[White "Roselli Mailhe, Bernardo"]
[Black "Curi, Gabriel"]
[Result "1/2-1/2"]
[ECO "D00"]
[WhiteElo "2471"]
[BlackElo "2185"]
[Annotator "ChessBase"]
[PlyCount "72"]
[EventDate "2019.07.05"]
[EventType "swiss"]
[EventCountry "BRA"]
[SourceTitle "playchess.com"]
[Source "ChessBase"]
[SourceQuality "1"]
[TimeControl "40/5400+30:1800+30"]

1. d4 {[%emt 0:00:00]} d5 {[%emt 0:00:00]} 2. Bf4 {[%emt 0:00:00]} Nf6 {[%emt 0:00:00]} 3. e3 {[%emt 0:00:00]} c5 {[%emt 0:00:00]} 4. Nc3 {[%emt 0:00:00]} Bg4 {[%emt 0:09:56]} 5. f3 {[%emt 0:05:49]} Bf5 {[%emt 0:01:47]} 6. Nb5 {[%emt 0:04:50]} Na6 {[%emt 0:01:24]} 7. c3 {[%emt 0:03:36]} Qb6 {[%emt 0:14:53]} 8. a4 {[%emt 0:07:00]} c4 {[%emt 0:03:34]} 9. g4 {[%emt 0:15:27]} Bd7 {[%emt 0:01:10]} 10. b3 {[%emt 0:00:07]} cxb3 {[%emt 0:04:26]} 11. Qxb3 {[%emt 0:00:13]} e6 {[%emt 0:01:41]} 12. Bd3 {[%emt 0:02:23]} Be7 {[%emt 0:04:32]} 13. Nd6+ {[%emt 0:05:00]} Bxd6 {[%emt 0:00:06]} 14. Qxb6 {[%emt 0:00:03]} axb6 {[%emt 0:00:08]} 15. Bxd6 {[%emt 0:00:03]} Bc6 {[%emt 0:00:35]} 16. Ne2 {[%emt 0:05:39]} Kd7 {[%emt 0:02:18]} 17. Be5 {[%emt 0:00:52]} Nc7 {[%emt 0:03:12]} 18. Bc2 {[%emt 0:03:32]} Nfe8 {[%emt 0:06:19]} 19. Kf2 {[%emt 0:04:22]} f6 {[%emt 0:01:46]} 20. Bg3 {[%emt 0:00:57]} h5 {[%emt 0:02:38]} 21. gxh5 {[%emt 0:03:19]} Rxh5 {[%emt 0:00:24]} 22. Rhb1 {[%emt 0:00:53]} Ra6 {[%emt 0:02:46]} 23. Nf4 {[%emt 0:06:02]} Rh6 {[%emt 0:01:52]} 24. h4 {[%emt 0:03:13]} Nd6 {[%emt 0:02:46]} 25. Nd3 {[%emt 0:00:36]} Nf5 {[%emt 0:02:47]} 26. Nb4 {[%emt 0:04:07]} Ra8 {[%emt 0:00:14]} 27. Bxf5 {[%emt 0:00:31]} exf5 {[%emt 0:00:16]} 28. Nxc6 {[%emt 0:06:49]} Kxc6 {[%emt 0:00:30]} 29. c4 {[%emt 0:00:54]} g5 {[%emt 0:08:49]} 30. hxg5 {[%emt 0:03:13]} fxg5 {[%emt 0:00:23]} 31. Rc1 {[%emt 0:04:59]} Ne6 {[%emt 0:03:38]} 32. Be5 {[%emt 0:07:00]} g4 {[%emt 0:06:50]} 33. Rab1 {[%emt 0:02:43]} gxf3 {[%emt 0:01:23]} 34. cxd5+ {[%emt 0:00:46]} Kxd5 35. Rxb6 {[%emt 0:00:14]} Rxa4 {[%emt 0:02:03]} 36. Rc2 {[%emt 0:01:41]} Rg6 {[%emt 0:05:35]} 1/2-1/2

[Event "XIV American Continental-ch 2019"]
[Site "Sao Paulo"]
[Date "2019.07.07"]
[Round "4.21"]
[White "Bueno, Alfeu Junior Varela"]
[Black "Perdomo, Leandro"]
[Result "1-0"]
[ECO "C55"]
[WhiteElo "2169"]
[BlackElo "2468"]
[Annotator "ChessBase"]
[PlyCount "83"]
[EventDate "2019.07.05"]
[EventType "swiss"]
[EventCountry "BRA"]
[SourceTitle "playchess.com"]
[Source "ChessBase"]
[SourceQuality "1"]
[TimeControl "40/5400+30:1800+30"]

1. e4 {[%emt 0:05:28]} e5 {[%emt 0:00:01]} 2. Nf3 {[%emt 0:00:23]} Nc6 {[%emt 0:00:03]} 3. Bc4 {[%emt 0:00:10]} Nf6 {[%emt 0:00:03]} 4. d3 {[%emt 0:02:02]} Be7 {[%emt 0:00:02]} 5. O-O {[%emt 0:01:47]} O-O {[%emt 0:00:04]} 6. Re1 {[%emt 0:04:55]} d6 {[%emt 0:00:08]} 7. h3 {[%emt 0:01:05]} Na5 {[%emt 0:00:33]} 8. Bb3 {[%emt 0:00:20]} c6 {[%emt 0:07:38]} 9. Nc3 {[%emt 0:09:43]} Qc7 {[%emt 0:03:06]} 10. Bg5 {[%emt 0:03:07]} Re8 {[%emt 0:16:51]} 11. d4 {[%emt 0:09:03]} b5 12. Qd3 a6 {[%emt 0:18:39]} 13. dxe5 {[%emt 0:22:23]} dxe5 {[%emt 0:00:09]} 14. Rad1 {[%emt 0:04:48]} Nb7 15. Qe3 Bc5 {[%emt 0:24:12]} 16. Qe2 {[%emt 0:06:22]} Qe7 {[%emt 0:01:21]} 17. Nh4 {[%emt 0:07:53]} a5 {[%emt 0:13:56]} 18. a3 {[%emt 0:00:30]} a4 {[%emt 0:00:30]} 19. Ba2 {[%emt 0:00:30]} Be6 {[%emt 0:00:30]} 20. Nf5 {[%emt 0:00:30]} Bxf5 {[%emt 0:00:30]} 21. exf5 Nd6 22. Qf3 {[%emt 0:12:38]} b4 {[%emt 0:10:22]} 23. Ne4 {[%emt 0:05:41]} Ndxe4 {[%emt 0:00:11]} 24. Rxe4 {[%emt 0:00:05]} bxa3 {[%emt 0:00:52]} 25. bxa3 {[%emt 0:00:47]} Bxf2+ {[%emt 0:01:58]} 26. Kh1 {[%emt 0:00:04]} Bb6 {[%emt 0:00:37]} 27. Rg4 {[%emt 0:01:49]} e4 {[%emt 0:00:13]} 28. Qc3 {[%emt 0:00:40]} Nxg4 {[%emt 0:00:42]} 29. Bxe7 {[%emt 0:00:15]} Nf2+ {[%emt 0:00:01]} 30. Kh2 {[%emt 0:00:16]} Nxd1 {[%emt 0:00:04]} 31. Qxc6 {[%emt 0:00:36]} e3 {[%emt 0:01:40]} 32. Bxf7+ {[%emt 0:00:19]} Kh8 33. Bxe8 {[%emt 0:01:18]} e2 {[%emt 0:00:22]} 34. Bb4 {[%emt 0:00:45]} Rd8 {[%emt 0:00:41]} 35. f6 {[%emt 0:00:35]} Ne3 {[%emt 0:00:30]} 36. fxg7+ {[%emt 0:00:36]} Kxg7 {[%emt 0:00:15]} 37. Bc3+ {[%emt 0:00:19]} Kf8 {[%emt 0:00:15]} 38. Qxb6 {[%emt 0:00:28]} Nf1+ {[%emt 0:00:33]} 39. Kg1 {[%emt 0:00:15]} Rd1 {[%emt 0:01:23]} 40. Qf2+ {[%emt 0:00:30]} Kxe8 {[%emt 0:00:18]} 41. Qxe2+ {[%emt 0:30:11]} Ne3+ {[%emt 0:30:03]} 42. Kh2 {[%emt 0:00:28]} 1-0

[Event "XIV American Continental-ch 2019"]
[Site "Sao Paulo"]
[Date "2019.07.07"]
[Round "4.22"]
[White "Borges, Wagner da Silva"]
[Black "Matsuura, Everaldo"]
[Result "0-1"]
[ECO "B33"]
[WhiteElo "2114"]
[BlackElo "2459"]
[Annotator "ChessBase"]
[PlyCount "56"]
[EventDate "2019.07.05"]
[EventType "swiss"]
[EventCountry "BRA"]
[SourceTitle "playchess.com"]
[Source "ChessBase"]
[SourceQuality "1"]
[TimeControl "40/5400+30:1800+30"]

1. e4 {[%emt 0:00:01]} c5 {[%emt 0:00:05]} 2. Nf3 {[%emt 0:00:24]} Nc6 {[%emt 0:00:21]} 3. d4 {[%emt 0:00:29]} cxd4 {[%emt 0:00:12]} 4. Nxd4 {[%emt 0:00:19]} Nf6 {[%emt 0:02:02]} 5. Nc3 {[%emt 0:04:08]} e5 {[%emt 0:00:52]} 6. Ndb5 {[%emt 0:01:04]} d6 {[%emt 0:00:08]} 7. Bg5 {[%emt 0:01:02]} a6 {[%emt 0:00:07]} 8. Na3 {[%emt 0:00:28]} b5 {[%emt 0:00:08]} 9. Nd5 {[%emt 0:00:41]} Be7 {[%emt 0:00:08]} 10. Bxf6 {[%emt 0:01:27]} Bxf6 {[%emt 0:00:08]} 11. c3 {[%emt 0:01:03]} Bg5 {[%emt 0:00:32]} 12. Nc2 {[%emt 0:00:42]} O-O {[%emt 0:00:36]} 13. a4 {[%emt 0:05:09]} bxa4 {[%emt 0:00:17]} 14. Rxa4 {[%emt 0:00:13]} a5 {[%emt 0:00:12]} 15. Bd3 {[%emt 0:13:19]} Rb8 {[%emt 0:01:57]} 16. b4 {[%emt 0:06:00]} axb4 {[%emt 0:01:35]} 17. cxb4 {[%emt 0:01:53]} Be6 {[%emt 0:03:27]} 18. b5 {[%emt 0:07:19]} Na5 {[%emt 0:08:59]} 19. O-O {[%emt 0:07:42]} f5 {[%emt 0:12:50]} 20. Ncb4 {[%emt 0:01:17]} Bd7 {[%emt 0:12:14]} 21. Qa1 {[%emt 0:12:31]} fxe4 {[%emt 0:03:53]} 22. Na6 {[%emt 0:13:25]} Rc8 {[%emt 0:10:20]} 23. Bxe4 {[%emt 0:07:11]} Bxb5 {[%emt 0:01:33]} 24. Rxa5 {[%emt 0:00:45]} Bxf1 {[%emt 0:00:32]} 25. Nac7 {[%emt 0:00:15]} Bc4 {[%emt 0:10:36]} 26. f4 {[%emt 0:07:06]} Rxc7 {[%emt 0:01:42]} 27. Nxc7 {[%emt 0:01:12]} Qxc7 {[%emt 0:01:26]} 28. Ra8 {[%emt 0:00:57]} Bd8 {[%emt 0:03:18]} 0-1

[Event "XIV American Continental-ch 2019"]
[Site "Sao Paulo"]
[Date "2019.07.07"]
[Round "4.23"]
[White "Caetano, Ryan Wesley Da Costa"]
[Black "Sanchez Alvarez, Roberto Carlos"]
[Result "1/2-1/2"]
[ECO "E20"]
[WhiteElo "2155"]
[BlackElo "2434"]
[Annotator "NA"]
[PlyCount "47"]
[EventDate "2019.07.05"]
[EventType "swiss"]
[EventCountry "BRA"]
[SourceTitle "playchess.com"]
[Source "ChessBase"]
[SourceQuality "1"]
[TimeControl "40/5400+30:1800+30"]

1. d4 {[%emt 0:00:00]} Nf6 {[%emt 0:14:09]} 2. c4 {[%emt 0:00:00]} e6 {[%emt 0:00:10]} 3. Nc3 {[%emt 0:00:00]} Bb4 {[%emt 0:00:12]} 4. g3 {[%emt 0:00:00]} Bxc3+ {[%emt 0:04:00]} 5. bxc3 {[%emt 0:00:00]} d6 {[%emt 0:00:53]} 6. Bg2 {[%emt 0:00:04]} O-O {[%emt 0:00:16]} 7. Nf3 {[%emt 0:06:02]} Nc6 {[%emt 0:01:19]} 8. O-O {[%emt 0:00:23]} Rb8 {[%emt 0:02:35]} 9. Re1 {[%emt 0:05:11]} Na5 {[%emt 0:06:39]} 10. Nd2 {[%emt 0:04:19]} b6 {[%emt 0:00:43]} 11. e4 {[%emt 0:00:55]} Ba6 {[%emt 0:02:41]} 12. Bf1 {[%emt 0:01:44]} c5 {[%emt 0:08:00]} 13. f4 {[%emt 0:08:59]} e5 {[%emt 0:10:12]} 14. d5 {[%emt 0:03:32]} Kh8 {[%emt 0:06:46]} 15. Bd3 {[%emt 0:01:50]} exf4 {[%emt 0:02:57]} 16. gxf4 {[%emt 0:00:06]} Qd7 {[%emt 0:00:23]} 17. Kh1 {[%emt 0:08:12]} Qh3 {[%emt 0:11:27]} 18. Bf1 {[%emt 0:03:42]} Qh5 {[%emt 0:01:02]} 19. Be2 {[%emt 0:01:27]} Qh4 {[%emt 0:08:40]} 20. Nf3 {[%emt 0:04:06]} Qh3 {[%emt 0:01:01]} 21. Ng5 {[%emt 0:00:19]} Qh4 {[%emt 0:02:27]} 22. Nf3 {[%emt 0:02:56]} Qh3 {[%emt 0:02:19]} 23. Ng5 {[%emt 0:00:08]} Qh4 {[%emt 0:06:17]} 24. Nf3 {[%emt 0:00:09]} 1/2-1/2

[Event "XIV American Continental-ch 2019"]
[Site "Sao Paulo"]
[Date "2019.07.07"]
[Round "4.24"]
[White "Bittencourt, Jorge"]
[Black "Aguilar, Luis Miguel"]
[Result "1/2-1/2"]
[ECO "A65"]
[WhiteElo "2433"]
[BlackElo "2175"]
[Annotator "NA"]
[PlyCount "79"]
[EventDate "2019.07.05"]
[EventType "swiss"]
[EventCountry "BRA"]
[SourceTitle "playchess.com"]
[Source "ChessBase"]
[SourceQuality "1"]
[TimeControl "40/5400+30:1800+30"]

1. d4 {[%emt 0:00:00]} Nf6 {[%emt 0:03:26]} 2. c4 {[%emt 0:00:00]} c5 {[%emt 0:00:20]} 3. d5 {[%emt 0:00:00]} e6 {[%emt 0:00:16]} 4. Nc3 {[%emt 0:00:08]} exd5 {[%emt 0:00:33]} 5. cxd5 {[%emt 0:00:08]} d6 {[%emt 0:00:13]} 6. e4 {[%emt 0:00:20]} g6 {[%emt 0:00:13]} 7. Bd3 {[%emt 0:01:01]} Bg7 {[%emt 0:00:23]} 8. h3 {[%emt 0:00:13]} O-O {[%emt 0:00:16]} 9. Nf3 {[%emt 0:00:05]} b5 {[%emt 0:00:44]} 10. Nxb5 {[%emt 0:00:27]} Nxe4 {[%emt 0:01:39]} 11. Bxe4 {[%emt 0:00:22]} Re8 {[%emt 0:00:30]} 12. Ng5 {[%emt 0:01:18]} Qa5+ {[%emt 0:38:55]} 13. Nc3 {[%emt 0:00:12]} f5 {[%emt 0:09:20]} 14. O-O {[%emt 0:36:10]} Bxc3 {[%emt 0:12:02]} 15. bxc3 {[%emt 0:00:06]} fxe4 {[%emt 0:00:06]} 16. Re1 {[%emt 0:09:02]} Bf5 {[%emt 0:18:17]} 17. g4 {[%emt 0:18:07]} h6 {[%emt 0:00:47]} 18. gxf5 {[%emt 0:02:11]} hxg5 {[%emt 0:00:15]} 19. fxg6 {[%emt 0:02:01]} Qxc3 {[%emt 0:01:01]} 20. Qh5 {[%emt 0:02:20]} Qh8 {[%emt 0:06:09]} 21. Qxh8+ {[%emt 0:05:39]} Kxh8 {[%emt 0:00:05]} 22. Bxg5 {[%emt 0:00:26]} Kg7 {[%emt 0:03:35]} 23. Bf4 {[%emt 0:00:57]} Nd7 {[%emt 0:00:37]} 24. Bxd6 {[%emt 0:00:25]} Kxg6 {[%emt 0:00:50]} 25. Rac1 {[%emt 0:07:44]} Rac8 {[%emt 0:00:11]} 26. Rc4 {[%emt 0:00:42]} Kf5 {[%emt 0:01:43]} 27. f3 {[%emt 0:01:52]} exf3 {[%emt 0:00:31]} 28. Rf4+ {[%emt 0:00:07]} Kg5 {[%emt 0:00:25]} 29. Rxe8 {[%emt 0:00:32]} Rxe8 {[%emt 0:00:04]} 30. Rxf3 {[%emt 0:00:21]} Re1+ {[%emt 0:01:01]} 31. Kf2 {[%emt 0:00:40]} Rd1 {[%emt 0:00:05]} 32. Bf4+ {[%emt 0:01:04]} Kf5 {[%emt 0:00:33]} 33. d6 {[%emt 0:05:21]} Ne5 {[%emt 0:00:06]} 34. Bxe5+ {[%emt 0:00:10]} Kxe5 {[%emt 0:00:04]} 35. Ke2 {[%emt 0:03:03]} Rxd6 {[%emt 0:00:18]} 36. Re3+ {[%emt 0:00:23]} Kf4 {[%emt 0:00:58]} 37. Ra3 {[%emt 0:00:06]} a6 {[%emt 0:00:34]} 38. Ra5 {[%emt 0:00:30]} Kg3 {[%emt 0:01:20]} 39. Rxc5 {[%emt 0:00:15]} Kxh3 {[%emt 0:00:05]} 40. Rc3+ {[%emt 0:01:32]} 1/2-1/2